bitfinex/quotes_BTCUSD_20260103
["timestamp","ask_amount","ask_price","bid_price","bid_amount"]
[1767429271457,0.00010762,89768.0,89761.0,0.01114069]
[1767429271660,0.01124744,89768.0,89763.0,0.01114044]
[1767429271877,0.01124744,89768.0,89762.0,0.01114057]
[1767429272082,0.01124744,89768.0,89763.0,0.01114044]
[1767429272243,0.00010762,89768.0,89763.0,0.06684223]
[1767429272443,0.00010762,89768.0,89764.0,0.01114032]
[1767429272645,0.00010762,89768.0,89763.0,0.01114044]
[1767429272883,0.1716042,89764.0,89756.0,0.01114131]
[1767429273088,0.1716042,89761.0,89757.0,0.01116]
[1767429273509,0.01114044,89763.0,89757.0,0.02230119]
[1767429273715,0.01114044,89763.0,89758.0,0.01114106]
[1767429274046,0.1716042,89766.0,89758.0,0.01114106]
[1767429274047,0.18274427,89766.0,89759.0,0.06684566]
[1767429274583,0.1716042,89766.0,89761.0,0.01114069]
[1767429274785,0.1716042,89766.0,89762.0,0.01114057]
[1767429274984,0.01114007,89766.0,89761.0,0.01114069]
[1767429275184,0.01113995,89767.0,89761.0,0.01114069]
[1767429275410,0.01124744,89768.0,89762.0,0.01114057]
[1767429275699,0.01113995,89767.0,89762.0,0.01114057]
[1767429275922,0.01124744,89768.0,89763.0,0.01114044]
[1767429276119,0.00010762,89768.0,89763.0,0.01114044]
[1767429276328,0.01113908,89774.0,89768.0,0.01113982]
[1767429276529,7.991e-05,89774.0,89770.0,0.01113957]
[1767429276780,0.01113895,89775.0,89774.0,0.00081209]
[1767429276985,0.01113871,89777.0,89774.0,0.00081209]
[1767429277121,0.01113883,89776.0,89770.0,0.01113957]
[1767429277892,0.01113908,89774.0,89769.0,0.0111397]
[1767429278446,0.01113895,89775.0,89770.0,0.01113957]
[1767429278644,0.01113883,89776.0,89770.0,0.01113957]
[1767429278861,0.01113883,89776.0,89771.0,0.01113945]
[1767429279039,0.06683273,89777.0,89771.0,0.01113945]
[1767429279242,0.01113846,89779.0,89771.0,0.0668362]
[1767429279494,0.01113846,89779.0,89770.0,0.01113957]
[1767429279495,0.01113858,89778.0,89770.0,0.01113957]
[1767429279686,0.01113871,89777.0,89770.0,0.01113957]
[1767429279826,0.01113871,89777.0,89771.0,0.01113945]
[1767429280031,0.01113846,89779.0,89773.0,0.0111392]
[1767429280250,0.01113809,89782.0,89774.0,0.01113908]
[1767429280488,0.01113833,89780.0,89774.0,0.01113908]
[1767429280694,0.01113846,89779.0,89773.0,0.0111392]
[1767429280892,0.01113846,89779.0,89772.0,0.06683598]
[1767429280893,0.01113871,89777.0,89771.0,0.01113945]
[1767429281502,0.01113846,89779.0,89773.0,0.0111392]
[1767429281911,0.01113809,89782.0,89775.0,0.01113895]
[1767429282198,0.01113809,89782.0,89777.0,0.01113871]
[1767429282390,0.000186,89777.0,89776.0,0.01113883]
[1767429282785,0.01113809,89782.0,89776.0,0.01113883]
[1767429282986,0.01153771,89785.0,89776.0,0.01113883]
[1767429283250,0.01113809,89782.0,89777.0,0.01113871]
[1767429283416,0.01168784,89784.0,89777.0,0.01113871]
[1767429283947,0.00055,89784.0,89778.0,0.01113858]
[1767429284147,0.01168784,89784.0,89779.0,0.01113846]
[1767429284460,0.1716042,89783.0,89769.0,0.05569851]
[1767429284663,0.00055,89784.0,89769.0,0.05569851]
[1767429284664,0.18274353,89772.0,89769.0,7.991e-05]
[1767429284862,0.01113933,89772.0,89769.0,7.991e-05]
[1767429285429,0.06683598,89772.0,89764.0,0.02230032]
[1767429285631,0.01113957,89770.0,89764.0,0.01116]
[1767429285826,0.01113982,89768.0,89764.0,0.01116]
[1767429286030,0.01113957,89770.0,89764.0,0.01116]
[1767429286242,0.0111397,89769.0,89764.0,0.01116]
[1767429286437,0.01113995,89767.0,89764.0,0.01116]
[1767429286816,0.000186,89764.0,89761.0,0.01114069]
[1767429287153,0.01113982,89768.0,89762.0,0.01114057]
[1767429287379,0.1827434,89773.0,89765.0,0.01114019]
[1767429287627,0.01113945,89771.0,89766.0,0.01114007]
[1767429287823,0.01113895,89775.0,89768.0,0.01113982]
[1767429287956,0.0111392,89773.0,89766.0,0.01114007]
[1767429288166,0.0111392,89773.0,89765.0,0.01114019]
[1767429288505,0.0111392,89773.0,89767.0,0.01113995]
[1767429288506,0.01113933,89772.0,89767.0,0.01113995]
[1767429288681,0.05569549,89774.0,89767.0,0.01113995]
[1767429288682,0.01113908,89774.0,89767.0,0.01113995]
[1767429288884,0.01113908,89774.0,89766.0,0.01114007]
[1767429288885,0.01113945,89771.0,89766.0,0.01114007]
[1767429289053,0.01113945,89771.0,89765.0,0.01114019]
[1767429289253,0.01113945,89771.0,89766.0,0.01114007]
[1767429289502,0.01113945,89771.0,89764.0,0.01116]
[1767429289503,0.06683755,89770.0,89764.0,0.01116]
[1767429289736,0.01113945,89771.0,89764.0,0.01116]
[1767429289883,0.01113945,89771.0,89765.0,0.01114019]
[1767429290088,0.01113945,89771.0,89764.0,0.01116]
[1767429290089,0.18274377,89770.0,89764.0,0.01116]
[1767429290286,0.1716042,89768.0,89764.0,0.01116]
[1767429290469,0.0556926,89779.0,89768.0,0.000813]
[1767429290697,0.00055,89784.0,89776.0,0.01113883]
[1767429290898,0.01168784,89784.0,89776.0,0.01113883]
[1767429291105,0.01113796,89783.0,89775.0,0.01113895]
[1767429291284,0.01113796,89783.0,89776.0,0.01113883]
[1767429291480,0.00055,89784.0,89780.0,0.01113833]
[1767429291682,0.18314191,89785.0,89780.0,0.01113833]
[1767429291947,0.18314191,89785.0,89778.0,0.01113858]
[1767429292156,0.1716042,89784.0,89778.0,0.01113858]
[1767429292539,0.18274204,89784.0,89778.0,0.01113858]
[1767429292735,0.01113796,89783.0,89778.0,0.01113858]
[1767429292987,0.1716042,89782.0,89778.0,0.01113858]
[1767429293194,0.01113784,89784.0,89778.0,0.01113858]
[1767429293548,0.1720042,89785.0,89780.0,0.01113833]
[1767429293774,0.1720042,89785.0,89781.0,0.01113821]
[1767429294168,0.1720042,89785.0,89782.0,0.01113809]
[1767429294522,0.1720042,89785.0,89781.0,0.01113821]
[1767429294665,0.1720042,89785.0,89782.0,0.01113809]
[1767429294875,0.1720042,89785.0,89780.0,0.01113833]
[1767429295073,0.1720042,89785.0,89782.0,0.01113809]
[1767429295279,0.18314191,89785.0,89779.0,0.0668304]
[1767429295478,0.000736,89782.0,89779.0,0.01113846]
[1767429295705,0.18314191,89785.0,89779.0,0.01113846]
[1767429295907,0.18314191,89785.0,89780.0,0.01113833]
[1767429296111,0.18314191,89785.0,89779.0,0.01113846]
[1767429296297,0.01113809,89782.0,89776.0,0.01113883]
[1767429296495,0.000736,89779.0,89776.0,0.01113883]
[1767429296715,0.01113821,89781.0,89776.0,0.01113883]
[1767429296893,0.01113809,89782.0,89776.0,0.01113883]
[1767429297098,0.01113833,89780.0,89773.0,0.0111392]
[1767429297520,0.01113846,89779.0,89773.0,0.0111392]
[1767429297860,0.0118752,89773.0,89766.0,0.01114007]
[1767429298076,0.000736,89773.0,89771.0,0.01116]
[1767429298241,0.000736,89773.0,89766.0,0.01114007]
[1767429298481,0.01113895,89775.0,89769.0,0.0111397]
[1767429298840,0.01113871,89777.0,89772.0,0.01113933]
[1767429299008,0.1716042,89776.0,89770.0,0.01113957]
[1767429299209,0.1716042,89776.0,89772.0,0.01113933]
[1767429299614,0.1716042,89776.0,89773.0,0.0111392]
[1767429300291,0.1716042,89776.0,89770.0,0.06683705]
[1767429300292,0.000736,89773.0,89770.0,0.06683705]
[1767429300496,0.16132075,89773.0,89766.0,0.02230007]
[1767429300796,0.16132075,89772.0,89767.0,0.01113995]
[1767429301090,0.16132075,89772.0,89768.0,0.01113982]
[1767429301283,0.16132075,89772.0,89767.0,0.06683964]
[1767429301421,0.16132075,89772.0,89769.0,0.0111397]
[1767429301623,0.000736,89769.0,89767.0,0.01113995]
[1767429302049,0.16132075,89772.0,89769.0,0.06683773]
[1767429302269,0.16132075,89772.0,89769.0,0.06683808]
[1767429302466,0.16132075,89772.0,89769.0,0.0111397]
[1767429302883,0.16132075,89772.0,89767.0,0.05569914]
[1767429303139,0.16132075,89772.0,89768.0,0.01113982]
[1767429303340,0.16132075,89772.0,89769.0,0.0111397]
[1767429303543,0.16132075,89772.0,89765.0,0.01114019]
[1767429303544,0.16132075,89770.0,89750.0,0.15679681]
[1767429303842,0.01114007,89766.0,89752.0,0.15705442]
[1767429304144,0.01113945,89771.0,89766.0,0.000999]
[1767429304338,0.01113945,89771.0,89764.0,0.01114032]
[1767429304339,0.02229957,89770.0,89764.0,0.01114032]
[1767429304543,0.02229957,89770.0,89763.0,0.01114044]
[1767429304747,0.0111397,89769.0,89760.0,0.01114081]
[1767429304958,0.0111397,89769.0,89758.0,0.01114106]
[1767429305512,0.01114007,89766.0,89760.0,0.01114081]
[1767429305903,0.01114007,89766.0,89761.0,0.01114069]
[1767429306109,0.01114019,89765.0,89756.0,0.01114131]
[1767429306304,0.01114044,89763.0,89756.0,0.01114131]
[1767429306552,0.01114044,89763.0,89753.0,0.01114168]
[1767429306553,0.01114069,89761.0,89753.0,0.01114168]
[1767429306752,0.22816769,89758.0,89752.0,0.00025761]
[1767429306908,0.17246206,89756.0,89752.0,0.00025761]
[1767429307116,0.16132075,89756.0,89752.0,0.00025761]
[1767429307421,0.17246219,89755.0,89752.0,0.00025761]
[1767429307621,0.16132075,89755.0,89752.0,0.00025761]
[1767429307819,0.01114131,89756.0,89752.0,0.00025761]
[1767429308366,0.06684864,89755.0,89752.0,0.00025761]
[1767429308719,0.17246219,89755.0,89752.0,0.00025761]
[1767429308970,0.16132075,89755.0,89752.0,0.00021394]
[1767429309713,0.16132075,89755.0,89752.0,0.01135575]
[1767429309887,0.01116,89756.0,89755.0,0.000999]
[1767429310304,0.01116,89756.0,89753.0,0.06685002]
[1767429310518,0.01116,89756.0,89754.0,0.05566355]
[1767429310753,1e-08,89756.0,89754.0,0.05566355]
[1767429311126,0.01114057,89762.0,89757.0,0.01114119]
[1767429311314,0.17248075,89761.0,89758.0,0.01114106]
[1767429311510,0.01116,89760.0,89758.0,0.01114106]
[1767429311702,0.01116,89760.0,89756.0,0.01114131]
[1767429312466,0.010161,89760.0,89757.0,0.01114119]
[1767429312994,0.01116,89761.0,89759.0,0.01114094]
[1767429313187,0.01116,89761.0,89760.0,0.0668449]
[1767429313343,0.05569774,89771.0,89760.0,0.0668449]
[1767429313344,0.0120308,89770.0,89761.0,0.06684357]
[1767429313525,0.0111397,89769.0,89764.0,0.01114032]
[1767429313725,0.000999,89764.0,89763.0,0.01114044]
[1767429313947,0.02229982,89768.0,89763.0,0.01114044]
[1767429314149,0.01113995,89767.0,89760.0,0.0668449]
[1767429314325,0.01113995,89767.0,89760.0,0.01114081]
[1767429314530,0.01113982,89768.0,89762.0,0.01114057]
[1767429314750,0.01116,89767.0,89762.0,0.01114057]
[1767429314909,0.01116,89767.0,89763.0,0.01114044]
[1767429315115,0.00089123,89770.0,89767.0,0.01113995]
[1767429315316,0.01116,89769.0,89767.0,0.01014095]
[1767429316120,0.00089123,89770.0,89767.0,0.01113995]
[1767429316322,0.01113809,89782.0,89772.0,0.01113933]
[1767429316323,0.01113833,89780.0,89772.0,0.01113933]
[1767429316566,0.01116,89779.0,89776.0,0.01113883]
[1767429316773,0.0077714,89779.0,89777.0,0.05569355]
[1767429316987,0.0077714,89779.0,89776.0,0.01113883]
[1767429317154,0.0077714,89779.0,89771.0,0.01113945]
[1767429317510,0.0077714,89779.0,89766.0,0.01114007]
[1767429317511,0.01113908,89774.0,89766.0,0.01114007]
[1767429317714,0.0077714,89779.0,89766.0,0.0668399]
[1767429317715,0.16132075,89773.0,89766.0,0.0668399]
[1767429317835,0.16132075,89773.0,89767.0,0.05569927]
[1767429318258,0.16132075,89773.0,89768.0,0.01113982]
[1767429318458,0.16132075,89773.0,89770.0,0.01113957]
[1767429318900,0.16132075,89773.0,89770.0,0.06683697]
[1767429319682,0.01116,89775.0,89772.0,0.06683598]
[1767429319877,0.000999,89772.0,89771.0,0.01113945]
[1767429320334,0.17248075,89775.0,89771.0,0.01113945]
[1767429320538,0.17248075,89775.0,89769.0,0.0111397]
[1767429320741,0.01114007,89766.0,89759.0,0.02230094]
[1767429320877,0.01116,89771.0,89769.0,0.0111397]
[1767429321132,0.01116,89773.0,89769.0,0.0111397]
[1767429321485,0.07460268,89779.0,89773.0,0.0111392]
[1767429321605,0.07460268,89779.0,89772.0,0.01113933]
[1767429321606,0.01116,89778.0,89772.0,0.01113933]
[1767429321814,0.02229858,89778.0,89772.0,0.01113933]
[1767429322042,0.01113871,89777.0,89771.0,0.01113945]
[1767429322670,0.01113871,89777.0,89772.0,0.01113933]
[1767429322862,0.01113871,89777.0,89771.0,0.01113945]
[1767429323063,0.00115254,89775.0,89770.0,0.01113957]
[1767429323688,0.00115254,89775.0,89771.0,0.01113945]
[1767429323903,0.01229149,89775.0,89770.0,0.01113957]
[1767429324523,0.00115254,89775.0,89770.0,0.01113957]
[1767429324722,0.00115254,89775.0,89771.0,0.01113945]
[1767429326480,0.00115254,89775.0,89769.0,0.0111397]
[1767429327114,0.01229149,89775.0,89768.0,0.01113982]
[1767429327330,0.00115254,89775.0,89767.0,0.01113995]
[1767429327537,0.0111392,89773.0,89767.0,0.01113995]
[1767429327736,0.000999,89767.0,89764.0,0.01114032]
[1767429327910,0.01113957,89770.0,89765.0,0.01114019]
[1767429328108,0.01113957,89770.0,89763.0,0.06684263]
[1767429328109,0.01113957,89770.0,89763.0,0.01114044]
[1767429328317,0.0111397,89769.0,89762.0,0.06684293]
[1767429328762,0.01113982,89768.0,89763.0,0.01114044]
[1767429328973,0.02229858,89778.0,89766.0,0.01114007]
[1767429329172,0.02229858,89778.0,89768.0,0.01113982]
[1767429329173,0.01113908,89774.0,89768.0,0.01113982]
[1767429329345,0.01113908,89774.0,89769.0,0.0111397]
[1767429329545,0.01113908,89774.0,89768.0,0.01113982]
[1767429329748,0.0077714,89773.0,89768.0,0.01113982]
[1767429330146,0.0189106,89773.0,89767.0,0.01113995]
[1767429330349,0.0189106,89773.0,89768.0,0.01113982]
[1767429330558,0.0077714,89773.0,89768.0,0.01113982]
[1767429331140,0.0077714,89773.0,89769.0,0.0111397]
[1767429331896,0.0077714,89773.0,89768.0,0.01113982]
[1767429332185,0.0077714,89773.0,89769.0,0.0111397]
[1767429332398,0.0077714,89773.0,89770.0,0.01113957]
[1767429332916,0.01113821,89781.0,89768.0,0.0668384]
[1767429332917,0.0556892,89784.0,89773.0,0.16724205]
[1767429333054,0.0002,89788.0,89775.0,0.06683353]
[1767429333055,0.01113796,89783.0,89775.0,0.06683353]
[1767429333267,0.01113796,89783.0,89777.0,0.01113871]
[1767429334011,0.01113796,89783.0,89776.0,0.01113883]
[1767429334012,0.01113809,89782.0,89776.0,0.01113883]
[1767429334249,0.000999,89776.0,89768.0,0.01113982]
[1767429334453,0.05669343,89776.0,89765.0,0.06684068]
[1767429334634,0.0111392,89773.0,89766.0,0.01114007]
[1767429334833,0.01113908,89774.0,89768.0,0.01113982]
[1767429335038,0.16406485,89775.0,89770.0,0.01113957]
[1767429335190,0.17520356,89777.0,89772.0,0.01113933]
[1767429335384,0.17520356,89777.0,89770.0,0.066837]
[1767429335615,0.16406485,89777.0,89771.0,0.01113945]
[1767429335820,0.000999,89771.0,89769.0,0.05569851]
[1767429336015,0.000999,89771.0,89769.0,0.0111397]
[1767429336217,0.17520356,89777.0,89771.0,0.01113945]
[1767429336414,0.16406485,89777.0,89770.0,0.01113957]
[1767429336738,0.17520368,89776.0,89771.0,0.01113945]
[1767429336942,0.16406485,89776.0,89770.0,0.01113957]
[1767429337158,0.17520368,89776.0,89771.0,0.01113945]
[1767429337361,0.16406485,89776.0,89771.0,0.01113945]
[1767429337527,0.17520368,89776.0,89770.0,0.01113957]
[1767429337728,0.01113895,89775.0,89770.0,0.01113957]
[1767429337930,0.17520368,89776.0,89771.0,0.01113945]
[1767429338413,0.16406485,89776.0,89771.0,0.01113945]
[1767429338755,0.16406485,89776.0,89772.0,0.01113933]
[1767429339059,0.01113895,89775.0,89769.0,0.0111397]
[1767429339276,0.000999,89772.0,89769.0,0.06683781]
[1767429339475,0.16406485,89776.0,89771.0,0.01113945]
[1767429340271,0.01113883,89776.0,89769.0,0.0111397]
[1767429340635,0.000999,89771.0,89768.0,0.01113982]
[1767429341096,0.01113895,89775.0,89769.0,0.0111397]
[1767429341506,0.01113895,89775.0,89768.0,0.01113982]
[1767429341507,0.01113908,89774.0,89768.0,0.01113982]
[1767429341708,0.01113982,89768.0,89763.0,0.01114044]
[1767429341865,0.000999,89768.0,89764.0,0.01114032]
[1767429342097,0.01113957,89770.0,89764.0,0.01114032]
[1767429342449,0.01113945,89771.0,89763.0,0.01114044]
[1767429342653,0.01113945,89771.0,89766.0,0.01114007]
[1767429342873,0.01113945,89771.0,89766.0,0.01014107]
[1767429343304,0.01113945,89771.0,89765.0,0.01114019]
[1767429343468,0.01113945,89771.0,89766.0,0.01114007]
[1767429344076,0.01113933,89772.0,89763.0,0.06684267]
[1767429344421,0.01113933,89772.0,89766.0,0.01114007]
[1767429344635,0.01113908,89774.0,89758.0,0.16724205]
[1767429344636,0.05569547,89774.0,89758.0,0.16724205]
[1767429344828,0.05569547,89774.0,89762.0,0.01114057]
[1767429344829,0.01113982,89768.0,89762.0,0.01114057]
[1767429345029,0.0111397,89769.0,89764.0,0.01114032]
[1767429345233,0.0111397,89769.0,89762.0,0.06684284]
[1767429345234,0.0111397,89769.0,89763.0,0.01109678]
[1767429345409,0.01113957,89770.0,89764.0,0.01114032]
[1767429345606,0.01113957,89770.0,89765.0,0.01114019]
[1767429345809,0.01113957,89770.0,89764.0,0.01114032]
[1767429346012,0.01113945,89771.0,89766.0,0.01114007]
[1767429346206,0.01113945,89771.0,89765.0,0.01114019]
[1767429346811,0.17520442,89770.0,89762.0,0.01114057]
[1767429347010,0.01113957,89770.0,89765.0,0.01114019]
[1767429347336,0.01113957,89770.0,89764.0,0.01114032]
[1767429347570,0.01114019,89765.0,89752.0,0.01137394]
[1767429347692,0.33453314,89785.0,89752.0,0.01137394]
[1767429347693,0.01114106,89758.0,89753.0,0.01114168]
[1767429347893,0.01114094,89759.0,89753.0,0.01114168]
[1767429348095,0.21977329,89753.0,89752.0,0.00021394]
[1767429348301,0.21977329,89753.0,89745.0,0.01114268]
[1767429348302,0.01114168,89753.0,89747.0,0.01114243]
[1767429348539,0.01114181,89752.0,89746.0,0.01114255]
[1767429348927,0.01114193,89751.0,89746.0,0.01114255]
[1767429349044,6.789e-05,89753.0,89747.0,0.05571216]
[1767429349252,6.789e-05,89753.0,89749.0,0.01114218]
[1767429349454,6.789e-05,89753.0,89748.0,0.0111423]
[1767429349654,6.789e-05,89753.0,89747.0,0.01114243]
[1767429349850,0.01120957,89753.0,89747.0,0.01114243]
[1767429350246,0.01114181,89752.0,89745.0,0.01114268]
[1767429350453,0.01114181,89752.0,89746.0,0.01114255]
[1767429350846,0.01120957,89753.0,89748.0,0.0111423]
[1767429350993,6.789e-05,89753.0,89749.0,0.01114218]
[1767429351201,6.789e-05,89753.0,89750.0,0.01114206]
[1767429352014,6.789e-05,89753.0,89748.0,0.0111423]
[1767429352234,6.789e-05,89753.0,89749.0,0.01114218]
[1767429352766,6.789e-05,89753.0,89750.0,0.01114206]
[1767429352963,6.789e-05,89753.0,89749.0,0.01114218]
[1767429353731,6.789e-05,89753.0,89750.0,0.01114206]
[1767429354790,6.789e-05,89753.0,89749.0,0.00823637]
[1767429354988,6.789e-05,89753.0,89750.0,0.01114206]
[1767429356351,6.789e-05,89753.0,89749.0,0.00823637]
[1767429357170,6.789e-05,89753.0,89750.0,0.01114206]
[1767429358577,0.01114007,89766.0,89759.0,0.01114094]
[1767429358816,0.01114007,89766.0,89763.0,0.01114044]
[1767429358817,0.01116,89766.0,89763.0,0.01114044]
[1767429358964,0.16406485,89775.0,89766.0,0.06684044]
[1767429358965,0.01116,89768.0,89766.0,0.06684044]
[1767429359167,0.01123993,89768.0,89766.0,0.01014107]
[1767429359411,0.01123993,89768.0,89766.0,0.0658413]
[1767429360207,0.01123993,89768.0,89766.0,0.01014107]
[1767429360562,0.01123993,89768.0,89767.0,0.05569975]
[1767429361202,0.01123993,89768.0,89766.0,0.01014107]
[1767429362233,0.01123993,89768.0,89765.0,0.06684061]
[1767429362234,0.01123993,89768.0,89765.0,0.01114019]
[1767429363034,0.01123993,89768.0,89766.0,0.05569977]
[1767429365106,0.16406485,89775.0,89772.0,0.01113933]
[1767429365247,0.01116,89774.0,89770.0,0.06568991]
[1767429365449,0.01116,89773.0,89771.0,0.01113945]
[1767429366524,6.791e-05,89775.0,89773.0,0.000999]
[1767429366828,0.01116,89774.0,89773.0,0.000999]
[1767429366987,0.01116,89774.0,89772.0,0.01113933]
[1767429367237,0.01116,89774.0,89772.0,0.00821743]
[1767429367987,0.01116,89774.0,89772.0,0.06391361]
[1767429369062,0.01116,89774.0,89772.0,0.00821743]
[1767429369209,0.01116,89774.0,89770.0,0.01113957]
[1767429369404,0.01116,89774.0,89769.0,0.0111397]
[1767429369797,0.01116,89774.0,89770.0,0.01113957]
[1767429370809,0.01116,89774.0,89771.0,0.01113945]
[1767429371594,0.01116,89774.0,89770.0,0.01113957]
[1767429371805,0.01116,89774.0,89771.0,0.01113945]
[1767429372032,0.01116,89774.0,89770.0,0.01113957]
[1767429372973,0.02229908,89774.0,89762.0,0.01114057]
[1767429373175,0.15757081,89770.0,89763.0,0.01114044]
[1767429373373,0.15757081,89770.0,89766.0,0.01114007]
[1767429374009,0.15757081,89770.0,89767.0,0.01113995]
[1767429374576,0.15757081,89773.0,89770.0,0.01213857]
[1767429375222,0.15757081,89773.0,89770.0,0.01113957]
[1767429375462,0.01116,89774.0,89770.0,0.01113957]
[1767429376334,0.0111392,89773.0,89766.0,0.06683984]
[1767429376536,0.01113933,89772.0,89762.0,0.06684303]
[1767429376737,0.15757081,89771.0,89768.0,0.01113982]
[1767429376909,0.15757081,89771.0,89767.0,0.01113995]
[1767429377354,0.15757081,89771.0,89768.0,0.01113982]
[1767429377867,0.15757081,89773.0,89768.0,0.01113982]
[1767429379614,0.15657181,89773.0,89770.0,0.01113957]
[1767429379851,0.01116,89774.0,89771.0,0.01113945]
[1767429381002,0.01116,89776.0,89774.0,0.01113908]
[1767429381119,0.01116,89776.0,89772.0,0.05569628]
[1767429381120,0.01116,89781.0,89778.0,0.01113858]
[1767429381339,0.01116,89781.0,89778.0,0.0668311]
[1767429381546,0.000999,89778.0,89773.0,0.0111392]
[1767429381745,0.16870939,89778.0,89771.0,0.01113945]
[1767429382043,0.15757081,89776.0,89768.0,0.01113982]
[1767429382397,0.16870964,89776.0,89767.0,0.01113995]
[1767429382651,0.16870964,89776.0,89769.0,0.0111397]
[1767429382864,0.15757081,89776.0,89771.0,0.01113945]
[1767429383085,0.15757081,89776.0,89773.0,0.0111392]
[1767429383306,0.16873081,89781.0,89777.0,0.01113871]
[1767429383518,0.01213771,89777.0,89772.0,0.01113933]
[1767429383733,0.000999,89777.0,89772.0,0.01113933]
[1767429383951,0.17986902,89781.0,89772.0,0.01113933]
[1767429384164,0.01113833,89780.0,89773.0,0.0111392]
[1767429384374,0.01113846,89779.0,89773.0,0.0111392]
[1767429384604,0.01113833,89780.0,89773.0,0.0111392]
[1767429385692,0.01113833,89780.0,89774.0,0.01113908]
[1767429385865,0.23556054,89781.0,89775.0,0.01113895]
[1767429386247,0.17986902,89781.0,89775.0,0.01113895]
[1767429386647,0.000999,89775.0,89773.0,0.0111392]
[1767429386981,0.01113833,89780.0,89773.0,0.0111392]
[1767429387185,0.01113846,89779.0,89774.0,0.01113908]
[1767429387662,0.01113846,89779.0,89773.0,0.0111392]
[1767429388076,0.01113858,89778.0,89772.0,0.01113933]
[1767429388286,0.01113871,89777.0,89770.0,0.29504083]
[1767429388494,0.01113883,89776.0,89769.0,0.06683774]
[1767429388721,0.01113883,89776.0,89770.0,0.01113957]
[1767429388928,0.01113871,89777.0,89771.0,0.01113945]
[1767429389139,0.01113858,89778.0,89771.0,0.01113945]
[1767429389352,0.01113871,89777.0,89770.0,0.01113957]
[1767429389559,0.01113883,89776.0,89770.0,0.01014057]
[1767429389772,0.01113883,89776.0,89764.0,0.01114032]
[1767429389773,0.17121371,89776.0,89764.0,0.01114032]
[1767429389996,0.17121421,89772.0,89764.0,0.01114032]
[1767429390210,0.17121421,89772.0,89761.0,0.01114069]
[1767429390211,0.01113982,89768.0,89761.0,0.01114069]
[1767429390424,0.0111397,89769.0,89761.0,0.01114069]
[1767429390642,0.0111397,89769.0,89763.0,0.01114044]
[1767429390790,0.01113957,89770.0,89763.0,0.01114044]
[1767429391001,0.01113957,89770.0,89764.0,0.01114032]
[1767429391433,0.01113995,89767.0,89758.0,0.01114106]
[1767429391673,0.16007488,89766.0,89760.0,0.01114081]
[1767429392172,0.01113982,89768.0,89762.0,0.01114057]
[1767429392377,0.1712147,89768.0,89762.0,0.01114057]
[1767429392619,0.01113995,89767.0,89761.0,0.01114069]
[1767429392837,0.02230007,89766.0,89760.0,0.01114081]
[1767429393398,0.01116,89766.0,89761.0,0.01114069]
[1767429394010,0.02230007,89766.0,89761.0,0.01114069]
[1767429394251,0.01116,89766.0,89762.0,0.01114057]
[1767429394567,0.01116,89766.0,89763.0,0.01114044]
[1767429394800,0.01116,89766.0,89762.0,0.01114057]
[1767429394998,0.01116,89766.0,89761.0,0.01114069]
[1767429395201,0.01116,89766.0,89762.0,0.01114057]
[1767429395626,0.01116,89766.0,89761.0,0.01114069]
[1767429395831,0.01116,89766.0,89760.0,0.01114081]
[1767429395832,0.02230007,89766.0,89760.0,0.01114081]
[1767429396041,0.01114019,89765.0,89759.0,0.06684516]
[1767429396247,0.01114019,89765.0,89760.0,0.01114081]
[1767429396449,0.01114032,89764.0,89759.0,0.01114094]
[1767429396557,0.01114032,89764.0,89758.0,0.01114106]
[1767429396975,0.01114032,89764.0,89759.0,0.01114094]
[1767429397591,0.01114019,89765.0,89760.0,0.01114081]
[1767429397813,0.02230007,89766.0,89761.0,0.01114069]
[1767429398030,0.01116,89766.0,89761.0,0.01114069]
[1767429399844,0.02230007,89766.0,89760.0,0.01114081]
[1767429400448,0.02230007,89766.0,89759.0,0.01114094]
[1767429400586,0.01114019,89765.0,89759.0,0.01114094]
[1767429400991,0.02230007,89766.0,89760.0,0.01114081]
[1767429401383,0.02230007,89766.0,89761.0,0.01114069]
[1767429401928,0.02230007,89766.0,89760.0,0.01114081]
[1767429403667,0.01114019,89765.0,89759.0,0.01114094]
[1767429403941,0.01116,89766.0,89760.0,0.01114081]
[1767429404164,0.01116,89766.0,89765.0,0.000999]
[1767429404375,0.02230007,89766.0,89760.0,0.01114081]
[1767429404510,0.01116,89766.0,89760.0,0.01114081]
[1767429404716,0.01116,89766.0,89759.0,0.01114094]
[1767429405147,0.02230007,89766.0,89760.0,0.01114081]
[1767429405399,0.01116,89766.0,89763.0,0.01114044]
[1767429405540,0.01116,89766.0,89762.0,0.01114057]
[1767429405736,0.01116,89766.0,89761.0,0.01114069]
[1767429407548,0.01116,89766.0,89762.0,0.01114057]
[1767429407945,0.01116,89767.0,89763.0,0.01114044]
[1767429408190,0.00665396,89767.0,89766.0,0.000999]
[1767429408551,0.00665396,89767.0,89764.0,0.01114032]
[1767429409224,0.00338082,89767.0,89764.0,0.06684193]
[1767429410228,0.00338082,89767.0,89765.0,0.05570046]
[1767429410434,0.01116,89769.0,89768.0,0.01113982]
[1767429410604,0.01116,89769.0,89768.0,0.01014082]
[1767429411026,0.01116,89769.0,89766.0,0.01114007]
[1767429412812,0.05569393,89777.0,89769.0,0.0111397]
[1767429412960,0.01113895,89775.0,89769.0,0.0121387]
[1767429413154,0.01113895,89775.0,89768.0,0.01113982]
[1767429413155,0.01113908,89774.0,89768.0,0.01113982]
[1767429413362,0.0111392,89773.0,89768.0,0.01113982]
[1767429414418,0.0111392,89773.0,89767.0,0.0668397]
[1767429414622,0.0111392,89773.0,89767.0,0.01113995]
[1767429415166,0.01113933,89772.0,89767.0,0.01113995]
[1767429415374,0.02229933,89772.0,89767.0,0.01113995]
[1767429415589,0.17415362,89779.0,89767.0,0.01113995]
[1767429415789,0.01113895,89775.0,89772.0,0.000999]
[1767429415920,0.01113895,89775.0,89769.0,0.0111397]
[1767429416967,0.01113895,89775.0,89770.0,0.01113957]
[1767429417323,0.01113883,89776.0,89770.0,0.01113957]
[1767429418001,0.01113895,89775.0,89770.0,0.01113957]
[1767429418338,0.01113883,89776.0,89770.0,0.01113957]
[1767429418520,0.01113883,89776.0,89771.0,0.01113945]
[1767429418918,0.01113871,89777.0,89771.0,0.01113945]
[1767429419241,0.00015,89784.0,89777.0,0.000999]
[1767429419416,0.01116,89779.0,89778.0,0.01113858]
[1767429420267,0.010161,89779.0,89778.0,0.01113858]
[1767429421232,0.010161,89779.0,89778.0,6.791e-05]
[1767429421436,0.0111392,89773.0,89765.0,0.01114019]
[1767429421647,0.10732253,89769.0,89762.0,0.01114057]
[1767429421845,0.26842237,89769.0,89765.0,0.01114019]
[1767429422054,0.26842237,89769.0,89766.0,0.01114007]
[1767429422269,0.10732253,89769.0,89766.0,0.01114007]
[1767429422893,0.10732253,89769.0,89766.0,0.06684038]
[1767429423074,0.10732253,89769.0,89764.0,0.01114032]
[1767429423530,0.26842237,89769.0,89766.0,0.01114007]
[1767429423729,0.16109984,89768.0,89766.0,0.01114007]
[1767429424023,0.10732253,89769.0,89766.0,0.01114007]
[1767429424803,0.10732253,89769.0,89765.0,0.01114019]
[1767429425595,0.10732253,89769.0,89766.0,0.01114007]